[Event "Titled Tuesday Blitz December 20 Late 2022"]
[White "Bogaudinov, Rushan"]
[Black "Solon, Nathan"]
[WhiteFideId "4129288"]
[BlackFideId "2017229"]
[WhiteElo "2028"]
[BlackElo "2646"]
[Result "0-1"]
[Round "01"]
[TimeControl "180+1"]
[Date "2022.12.21"]
[WhiteClock "0:00:03"]
[BlackClock "0:00:48"]

1. a3 {[%clk 0:02:51]}  d5 {[%clk 0:02:56]} 2. e3 {[%clk 0:02:51]}  e5 {[%clk 0:02:55]} 3. Nf3 {[%clk 0:02:51]}  Bd6 {[%clk 0:02:54]} 4. c4 {[%clk 0:02:49]}  c6 {[%clk 0:02:51]} 5. b4 {[%clk 0:02:48]}  Nf6 {[%clk 0:02:50]} 6. Bb2 {[%clk 0:02:47]}  Qe7 {[%clk 0:02:50]} 7. Be2 {[%clk 0:02:42]}  O-O {[%clk 0:02:50]} 8. d4 {[%clk 0:02:40]}  e4 {[%clk 0:02:50]} 9. Nfd2 {[%clk 0:02:31]}  Nbd7 {[%clk 0:02:44]} 10. c5 {[%clk 0:02:30]}  Bb8 {[%clk 0:02:38]} 11. Nc3 {[%clk 0:02:28]}  a6 {[%clk 0:02:32]} 12. a4 {[%clk 0:02:28]}  Re8 {[%clk 0:02:31]} 13. b5 {[%clk 0:02:26]}  axb5 {[%clk 0:02:31]} 14. axb5 {[%clk 0:02:26]}  Rxa1 {[%clk 0:02:31]} 15. Qxa1 {[%clk 0:02:27]}  Nf8 {[%clk 0:02:30]} 16. Na4 {[%clk 0:02:15]}  Ng6 {[%clk 0:02:26]} 17. Nb6 {[%clk 0:02:12]}  Bg4 {[%clk 0:02:26]} 18. h3 {[%clk 0:02:07]}  Bxe2 {[%clk 0:02:24]} 19. Kxe2 {[%clk 0:02:08]}  Nh4 {[%clk 0:02:22]} 20. Kf1 {[%clk 0:01:59]}  Nh5 {[%clk 0:02:18]} 21. Qd1 {[%clk 0:01:52]}  g6 {[%clk 0:02:04]} 22. bxc6 {[%clk 0:01:48]}  bxc6 {[%clk 0:02:05]} 23. Qg4 {[%clk 0:00:58]}  f5 {[%clk 0:02:02]} 24. Qe2 {[%clk 0:00:58]}  f4 {[%clk 0:01:57]} 25. Qg4 {[%clk 0:00:52]}  fxe3 {[%clk 0:01:53]} 26. fxe3 {[%clk 0:00:47]}  Ng3+ {[%clk 0:01:48]} 27. Kg1 {[%clk 0:00:47]}  Nxh1 {[%clk 0:01:31]} 28. Kxh1 {[%clk 0:00:47]}  Qc7 {[%clk 0:01:25]} 29. g3 {[%clk 0:00:38]}  Nf5 {[%clk 0:01:17]} 30. Nf1 {[%clk 0:00:19]}  Nxg3+ {[%clk 0:01:17]} 31. Nxg3 {[%clk 0:00:18]}  Qxg3 {[%clk 0:01:18]} 32. Qxg3 {[%clk 0:00:18]}  Bxg3 {[%clk 0:01:19]} 33. Nd7 {[%clk 0:00:16]}  Ra8 {[%clk 0:01:14]} 34. Kg2 {[%clk 0:00:16]}  Bc7 {[%clk 0:01:10]} 35. Bc3 {[%clk 0:00:15]}  Kf7 {[%clk 0:01:08]} 36. Nb6 {[%clk 0:00:13]}  Bxb6 {[%clk 0:01:02]} 37. cxb6 {[%clk 0:00:14]}  Ra6 {[%clk 0:00:57]} 38. b7 {[%clk 0:00:13]}  Rb6 {[%clk 0:00:57]} 39. Kg3 {[%clk 0:00:10]}  Rxb7 {[%clk 0:00:57]} 40. Kf4 {[%clk 0:00:10]}  Ke6 {[%clk 0:00:58]} 41. Ba5 {[%clk 0:00:09]}  Rf7+ {[%clk 0:00:53]} 42. Kg4 {[%clk 0:00:06]}  Rf3 {[%clk 0:00:54]} 43. Bd2 {[%clk 0:00:06]}  Kf6 {[%clk 0:00:53]} 44. Bc1 {[%clk 0:00:06]}  h5+ {[%clk 0:00:52]} 45. Kh4 {[%clk 0:00:04]}  Kf5 {[%clk 0:00:47]} 46. Bd2 {[%clk 0:00:03]}  g5+ {[%clk 0:00:47]} 47. Kxh5 {[%clk 0:00:03]}  Rxh3# {[%clk 0:00:48]} 0-1


[Site "https://www.chess.com"]

[Event "Titled Tuesday Blitz December 20 Late 2022"]
[White "Brodowski, Piotr"]
[Black "Rodriguez Santiago, Jaime"]
[WhiteFideId "1124480"]
[BlackFideId "3100898"]
[WhiteElo "2351"]
[BlackElo "2025"]
[Result "1-0"]
[Round "01"]
[TimeControl "180+1"]
[Date "2022.12.21"]
[WhiteClock "0:01:55"]
[BlackClock "0:00:37"]

1. c4 {[%clk 0:03:00]}  e5 {[%clk 0:02:56]} 2. Nc3 {[%clk 0:02:59]}  Nf6 {[%clk 0:02:55]} 3. g3 {[%clk 0:02:59]}  Bb4 {[%clk 0:02:55]} 4. Bg2 {[%clk 0:02:55]}  Bxc3 {[%clk 0:02:54]} 5. bxc3 {[%clk 0:02:55]}  d6 {[%clk 0:02:52]} 6. e4 {[%clk 0:02:55]}  Nc6 {[%clk 0:02:49]} 7. d3 {[%clk 0:02:55]}  O-O {[%clk 0:02:48]} 8. Nh3 {[%clk 0:02:54]}  b6 {[%clk 0:02:39]} 9. O-O {[%clk 0:02:53]}  h6 {[%clk 0:02:29]} 10. f4 {[%clk 0:02:52]}  Bg4 {[%clk 0:02:27]} 11. Qc2 {[%clk 0:02:50]}  Na5 {[%clk 0:02:15]} 12. Nf2 {[%clk 0:02:50]}  Bd7 {[%clk 0:02:14]} 13. Be3 {[%clk 0:02:46]}  Qe8 {[%clk 0:02:13]} 14. Qd2 {[%clk 0:02:45]}  Rd8 {[%clk 0:01:58]} 15. h3 {[%clk 0:02:42]}  exf4 {[%clk 0:01:40]} 16. gxf4 {[%clk 0:02:41]}  Bc8 {[%clk 0:01:40]} 17. Kh2 {[%clk 0:02:38]}  Ba6 {[%clk 0:01:34]} 18. Rg1 {[%clk 0:02:30]}  Kh7 {[%clk 0:01:31]} 19. Bf3 {[%clk 0:02:30]}  Ng8 {[%clk 0:01:28]} 20. Rg3 {[%clk 0:02:28]}  Rd7 {[%clk 0:01:22]} 21. Rag1 {[%clk 0:02:27]}  f5 {[%clk 0:01:22]} 22. exf5 {[%clk 0:02:20]}  Re7 {[%clk 0:01:13]} 23. Ne4 {[%clk 0:02:09]}  Rxf5 {[%clk 0:01:07]} 24. Bd4 {[%clk 0:02:00]}  g5 {[%clk 0:00:37]} 25. fxg5 {[%clk 0:01:55]}  c5 {[%clk 0:00:37]} 26. g6+ {[%clk 0:01:55]} 1-0


[Site "https://www.chess.com"]

[Event "Titled Tuesday Blitz December 20 Late 2022"]
[White "Burke, Paul"]
[Black "Pham, Khoi"]
[WhiteFideId "2605767"]
[BlackFideId "1054988"]
[WhiteElo "1783"]
[BlackElo "2510"]
[Result "0-1"]
[Round "01"]
[TimeControl "180+1"]
[Date "2022.12.21"]
[WhiteClock "0:00:06"]
[BlackClock "0:00:48"]

1. e4 {[%clk 0:03:00]}  c6 {[%clk 0:02:55]} 2. d4 {[%clk 0:03:00]}  d5 {[%clk 0:02:56]} 3. exd5 {[%clk 0:03:00]}  cxd5 {[%clk 0:02:56]} 4. c4 {[%clk 0:03:00]}  Nf6 {[%clk 0:02:56]} 5. Nc3 {[%clk 0:03:00]}  g6 {[%clk 0:02:55]} 6. Nf3 {[%clk 0:03:00]}  Bg7 {[%clk 0:02:55]} 7. Be2 {[%clk 0:03:00]}  O-O {[%clk 0:02:55]} 8. O-O {[%clk 0:03:00]}  dxc4 {[%clk 0:02:56]} 9. Bxc4 {[%clk 0:02:59]}  Nc6 {[%clk 0:02:53]} 10. d5 {[%clk 0:02:50]}  Na5 {[%clk 0:02:50]} 11. Be2 {[%clk 0:02:49]}  b6 {[%clk 0:02:47]} 12. Bf4 {[%clk 0:02:27]}  Nb7 {[%clk 0:02:31]} 13. Be5 {[%clk 0:02:14]}  Nd6 {[%clk 0:02:30]} 14. h3 {[%clk 0:02:07]}  Bb7 {[%clk 0:02:26]} 15. Qd2 {[%clk 0:02:04]}  Rc8 {[%clk 0:02:11]} 16. Rad1 {[%clk 0:02:03]}  Qd7 {[%clk 0:02:01]} 17. Rfe1 {[%clk 0:02:02]}  Rfd8 {[%clk 0:02:01]} 18. Bxd6 {[%clk 0:01:49]}  Qxd6 {[%clk 0:02:02]} 19. Bf1 {[%clk 0:01:28]}  Nxd5 {[%clk 0:01:46]} 20. Nxd5 {[%clk 0:01:27]}  Bxd5 {[%clk 0:01:47]} 21. Ba6 {[%clk 0:01:16]}  Rc7 {[%clk 0:01:39]} 22. a3 {[%clk 0:00:55]}  Bxf3 {[%clk 0:01:22]} 23. Qxd6 {[%clk 0:00:53]}  exd6 {[%clk 0:01:20]} 24. gxf3 {[%clk 0:00:43]}  Bxb2 {[%clk 0:01:19]} 25. Rd2 {[%clk 0:00:32]}  Bxa3 {[%clk 0:01:05]} 26. Red1 {[%clk 0:00:32]}  Re8 {[%clk 0:01:01]} 27. Rd3 {[%clk 0:00:31]}  Bc5 {[%clk 0:01:00]} 28. Bb5 {[%clk 0:00:29]}  Re2 {[%clk 0:01:00]} 29. Rxd6 {[%clk 0:00:23]}  Rxf2 {[%clk 0:00:54]} 30. Rd8+ {[%clk 0:00:12]}  Kg7 {[%clk 0:00:54]} 31. Kh1 {[%clk 0:00:11]}  Rxf3 {[%clk 0:00:52]} 32. R8d7 {[%clk 0:00:11]}  Rxd7 {[%clk 0:00:52]} 33. Rxd7 {[%clk 0:00:10]}  Rxh3+ {[%clk 0:00:52]} 34. Kg2 {[%clk 0:00:10]}  Re3 {[%clk 0:00:50]} 35. Rxa7 {[%clk 0:00:09]}  h5 {[%clk 0:00:49]} 36. Bc4 {[%clk 0:00:08]}  Re7 {[%clk 0:00:49]} 37. Kg3 {[%clk 0:00:06]}  Rxa7 {[%clk 0:00:48]} 0-1


[Site "https://www.chess.com"]

[Event "Titled Tuesday Blitz December 20 Late 2022"]
[White "Cilek, Bora"]
[Black "Biernacki, Mark"]
[WhiteFideId "34502165"]
[BlackFideId "2082322"]
[WhiteElo "2108"]
[BlackElo "1970"]
[Result "1-0"]
[Round "01"]
[TimeControl "180+1"]
[Date "2022.12.21"]
[WhiteClock "0:00:14"]
[BlackClock "0:00:05"]

1. e4 {[%clk 0:03:00]}  c5 {[%clk 0:02:58]} 2. c3 {[%clk 0:03:00]}  Nf6 {[%clk 0:02:58]} 3. e5 {[%clk 0:03:01]}  Nd5 {[%clk 0:02:58]} 4. d4 {[%clk 0:03:01]}  cxd4 {[%clk 0:02:59]} 5. cxd4 {[%clk 0:03:02]}  e6 {[%clk 0:02:59]} 6. Nf3 {[%clk 0:03:02]}  d6 {[%clk 0:02:59]} 7. Bc4 {[%clk 0:03:00]}  Be7 {[%clk 0:02:58]} 8. O-O {[%clk 0:03:00]}  O-O {[%clk 0:02:53]} 9. Re1 {[%clk 0:02:55]}  Bd7 {[%clk 0:02:51]} 10. Bxd5 {[%clk 0:02:52]}  exd5 {[%clk 0:02:51]} 11. Nc3 {[%clk 0:02:53]}  Bc6 {[%clk 0:02:43]} 12. Qb3 {[%clk 0:02:46]}  dxe5 {[%clk 0:02:31]} 13. Nxe5 {[%clk 0:02:47]}  Bf6 {[%clk 0:02:09]} 14. Be3 {[%clk 0:02:33]}  Nd7 {[%clk 0:01:53]} 15. Nxd5 {[%clk 0:02:08]}  Bxe5 {[%clk 0:01:18]} 16. dxe5 {[%clk 0:02:08]}  Nxe5 {[%clk 0:01:18]} 17. Rad1 {[%clk 0:02:08]}  Qh4 {[%clk 0:01:09]} 18. Bc5 {[%clk 0:01:26]}  Ng4 {[%clk 0:00:40]} 19. h3 {[%clk 0:01:26]}  Bxd5 {[%clk 0:00:18]} 20. Rxd5 {[%clk 0:01:16]}  Nf6 {[%clk 0:00:16]} 21. Rd4 {[%clk 0:01:07]}  Qh5 {[%clk 0:00:12]} 22. Bxf8 {[%clk 0:01:06]}  Rxf8 {[%clk 0:00:13]} 23. Qxb7 {[%clk 0:01:03]}  Qc5 {[%clk 0:00:13]} 24. Red1 {[%clk 0:01:01]}  h6 {[%clk 0:00:12]} 25. Rd8 {[%clk 0:01:01]}  Rxd8 {[%clk 0:00:11]} 26. Rxd8+ {[%clk 0:01:02]}  Kh7 {[%clk 0:00:12]} 27. Qb3 {[%clk 0:00:40]}  Ne4 {[%clk 0:00:10]} 28. Qe3 {[%clk 0:00:24]}  Qa5 {[%clk 0:00:04]} 29. Qxe4+ {[%clk 0:00:23]}  f5 {[%clk 0:00:05]} 30. Qe8 {[%clk 0:00:19]}  Qxa2 {[%clk 0:00:03]} 31. Qh8+ {[%clk 0:00:16]}  Kg6 {[%clk 0:00:04]} 32. Rd6+ {[%clk 0:00:17]}  Kh5 {[%clk 0:00:04]} 33. Qe8+ {[%clk 0:00:17]}  Kg5 {[%clk 0:00:04]} 34. Qe7+ {[%clk 0:00:16]}  Kf4 {[%clk 0:00:04]} 35. g3+ {[%clk 0:00:15]}  Kf3 {[%clk 0:00:05]} 36. Qe3# {[%clk 0:00:14]} 1-0


[Site "https://www.chess.com"]

[Event "Titled Tuesday Blitz December 20 Late 2022"]
[White "Cruz Mendez, Jean Marco"]
[Black "Curtis, John"]
[WhiteFideId "3526402"]
[BlackFideId "3200256"]
[WhiteElo "2064"]
[BlackElo "2203"]
[Result "1-0"]
[Round "01"]
[TimeControl "180+1"]
[Date "2022.12.21"]
[WhiteClock "0:00:25"]
[BlackClock "0:00:01"]

1. e4 {[%clk 0:02:57]}  c5 {[%clk 0:02:56]} 2. Nf3 {[%clk 0:02:57]}  d6 {[%clk 0:02:56]} 3. Bc4 {[%clk 0:02:56]}  e6 {[%clk 0:02:56]} 4. O-O {[%clk 0:02:54]}  Nf6 {[%clk 0:02:55]} 5. d3 {[%clk 0:02:53]}  a6 {[%clk 0:02:55]} 6. c3 {[%clk 0:02:53]}  b5 {[%clk 0:02:55]} 7. Bb3 {[%clk 0:02:53]}  Be7 {[%clk 0:02:48]} 8. Nbd2 {[%clk 0:02:52]}  Bb7 {[%clk 0:02:46]} 9. Re1 {[%clk 0:02:50]}  Nc6 {[%clk 0:02:43]} 10. d4 {[%clk 0:02:48]}  cxd4 {[%clk 0:02:42]} 11. cxd4 {[%clk 0:02:49]}  Na5 {[%clk 0:02:42]} 12. Bc2 {[%clk 0:02:48]}  Rc8 {[%clk 0:02:37]} 13. Nb3 {[%clk 0:02:30]}  Nxb3 {[%clk 0:02:31]} 14. axb3 {[%clk 0:02:31]}  d5 {[%clk 0:02:26]} 15. e5 {[%clk 0:02:29]}  Nd7 {[%clk 0:02:25]} 16. Bd2 {[%clk 0:02:25]}  Nb8 {[%clk 0:02:23]} 17. Rc1 {[%clk 0:02:23]}  Nc6 {[%clk 0:02:22]} 18. Bb1 {[%clk 0:02:21]}  g6 {[%clk 0:02:01]} 19. g3 {[%clk 0:02:17]}  Qb6 {[%clk 0:01:59]} 20. Be3 {[%clk 0:02:14]}  Kd7 {[%clk 0:01:49]} 21. h4 {[%clk 0:02:03]}  Nb4 {[%clk 0:01:41]} 22. Qe2 {[%clk 0:01:58]}  Rxc1 {[%clk 0:01:40]} 23. Rxc1 {[%clk 0:01:58]}  Rc8 {[%clk 0:01:38]} 24. Rxc8 {[%clk 0:01:58]}  Kxc8 {[%clk 0:01:36]} 25. Qd2 {[%clk 0:01:59]}  Qc7 {[%clk 0:01:33]} 26. Kg2 {[%clk 0:01:58]}  Nc6 {[%clk 0:01:27]} 27. Bg5 {[%clk 0:01:57]}  Bf8 {[%clk 0:01:25]} 28. h5 {[%clk 0:01:56]}  h6 {[%clk 0:01:25]} 29. Bxh6 {[%clk 0:01:55]}  Bb4 {[%clk 0:01:23]} 30. Qc1 {[%clk 0:01:50]}  gxh5 {[%clk 0:01:23]} 31. Qg5 {[%clk 0:01:48]}  Kb8 {[%clk 0:01:17]} 32. Qxh5 {[%clk 0:01:47]}  Na5 {[%clk 0:01:15]} 33. Be3 {[%clk 0:01:43]}  Nxb3 {[%clk 0:01:14]} 34. Qh8+ {[%clk 0:01:40]}  Ka7 {[%clk 0:01:14]} 35. Qf6 {[%clk 0:01:40]}  Qe7 {[%clk 0:01:10]} 36. Ng5 {[%clk 0:01:35]}  Qxf6 {[%clk 0:00:54]} 37. exf6 {[%clk 0:01:36]}  e5 {[%clk 0:00:55]} 38. Nxf7 {[%clk 0:01:28]}  exd4 {[%clk 0:00:55]} 39. Bf4 {[%clk 0:01:28]}  d3 {[%clk 0:00:49]} 40. Bxd3 {[%clk 0:01:21]}  d4+ {[%clk 0:00:49]} 41. Kh2 {[%clk 0:01:18]}  Nc5 {[%clk 0:00:48]} 42. Be2 {[%clk 0:01:13]}  Nd7 {[%clk 0:00:48]} 43. Be5 {[%clk 0:01:06]}  Bd5 {[%clk 0:00:47]} 44. Bxd4+ {[%clk 0:00:58]}  Kb7 {[%clk 0:00:45]} 45. Ne5 {[%clk 0:00:57]}  Nxf6 {[%clk 0:00:44]} 46. Nd3 {[%clk 0:00:56]}  Be7 {[%clk 0:00:41]} 47. g4 {[%clk 0:00:55]}  Ne4 {[%clk 0:00:41]} 48. f3 {[%clk 0:00:53]}  Nd2 {[%clk 0:00:40]} 49. Kg3 {[%clk 0:00:52]}  Bd6+ {[%clk 0:00:40]} 50. Kf2 {[%clk 0:00:51]}  a5 {[%clk 0:00:38]} 51. Nc5+ {[%clk 0:00:49]}  Kc6 {[%clk 0:00:37]} 52. Nd3 {[%clk 0:00:42]}  a4 {[%clk 0:00:35]} 53. Ke3 {[%clk 0:00:41]}  Nc4+ {[%clk 0:00:35]} 54. Kf2 {[%clk 0:00:40]}  b4 {[%clk 0:00:36]} 55. g5 {[%clk 0:00:37]}  a3 {[%clk 0:00:34]} 56. bxa3 {[%clk 0:00:37]}  bxa3 {[%clk 0:00:35]} 57. g6 {[%clk 0:00:37]}  Bg8 {[%clk 0:00:17]} 58. f4 {[%clk 0:00:36]}  Nd2 {[%clk 0:00:16]} 59. f5 {[%clk 0:00:35]}  Ne4+ {[%clk 0:00:15]} 60. Ke3 {[%clk 0:00:35]}  Ng3 {[%clk 0:00:13]} 61. Bg4 {[%clk 0:00:33]}  a2 {[%clk 0:00:06]} 62. f6 {[%clk 0:00:32]}  Bc4 {[%clk 0:00:05]} 63. f7 {[%clk 0:00:24]}  Bxd3 {[%clk 0:00:01]} 64. Kxd3 {[%clk 0:00:25]} 1-0


[Site "https://www.chess.com"]

[Event "Titled Tuesday Blitz December 20 Late 2022"]
[White "Delorme, Alban"]
[Black "Fiorito, Francisco"]
[WhiteFideId "623636"]
[BlackFideId "180165"]
[WhiteElo "2196"]
[BlackElo "2348"]
[Result "1/2-1/2"]
[Round "01"]
[TimeControl "180+1"]
[Date "2022.12.21"]
[WhiteClock "0:00:09"]
[BlackClock "0:00:14"]

1. e4 {[%clk 0:02:58]}  c5 {[%clk 0:02:58]} 2. Nf3 {[%clk 0:02:54]}  Nc6 {[%clk 0:02:57]} 3. d4 {[%clk 0:02:55]}  cxd4 {[%clk 0:02:58]} 4. Nxd4 {[%clk 0:02:55]}  g6 {[%clk 0:02:58]} 5. Nc3 {[%clk 0:02:55]}  Bg7 {[%clk 0:02:58]} 6. Be3 {[%clk 0:02:56]}  Nf6 {[%clk 0:02:59]} 7. Bc4 {[%clk 0:02:56]}  O-O {[%clk 0:02:59]} 8. Bb3 {[%clk 0:02:57]}  Re8 {[%clk 0:02:59]} 9. O-O {[%clk 0:02:57]}  d6 {[%clk 0:02:59]} 10. f3 {[%clk 0:02:57]}  Na5 {[%clk 0:02:58]} 11. Qd2 {[%clk 0:02:56]}  b6 {[%clk 0:02:58]} 12. Bh6 {[%clk 0:02:46]}  Bb7 {[%clk 0:02:51]} 13. Bxg7 {[%clk 0:02:46]}  Kxg7 {[%clk 0:02:52]} 14. Rad1 {[%clk 0:02:37]}  Qc7 {[%clk 0:02:51]} 15. Kh1 {[%clk 0:02:30]}  Qc5 {[%clk 0:02:45]} 16. a3 {[%clk 0:02:20]}  Rac8 {[%clk 0:02:38]} 17. Ba2 {[%clk 0:02:19]}  Nc4 {[%clk 0:02:36]} 18. Qc1 {[%clk 0:01:59]}  a6 {[%clk 0:02:24]} 19. Na4 {[%clk 0:01:53]}  Qa5 {[%clk 0:02:22]} 20. Bxc4 {[%clk 0:01:39]}  Rxc4 {[%clk 0:02:00]} 21. b3 {[%clk 0:01:36]}  Rcc8 {[%clk 0:01:59]} 22. Qe3 {[%clk 0:01:20]}  b5 {[%clk 0:01:58]} 23. Nb6 {[%clk 0:01:10]}  Qc3 {[%clk 0:01:30]} 24. Qg5 {[%clk 0:00:56]}  Rc5 {[%clk 0:01:24]} 25. Qc1 {[%clk 0:00:48]}  Rh5 {[%clk 0:01:18]} 26. Ne2 {[%clk 0:00:43]}  Qc5 {[%clk 0:01:14]} 27. Nf4 {[%clk 0:00:32]}  Qxb6 {[%clk 0:01:03]} 28. Nxh5+ {[%clk 0:00:32]}  Nxh5 {[%clk 0:01:04]} 29. c4 {[%clk 0:00:31]}  Nf6 {[%clk 0:01:00]} 30. cxb5 {[%clk 0:00:30]}  Qxb5 {[%clk 0:00:59]} 31. Qb2 {[%clk 0:00:30]}  Rc8 {[%clk 0:00:55]} 32. Rfe1 {[%clk 0:00:31]}  Rc5 {[%clk 0:00:53]} 33. b4 {[%clk 0:00:28]}  Rc7 {[%clk 0:00:52]} 34. e5 {[%clk 0:00:28]}  dxe5 {[%clk 0:00:51]} 35. Rxe5 {[%clk 0:00:27]}  Qc4 {[%clk 0:00:50]} 36. Rde1 {[%clk 0:00:27]}  e6 {[%clk 0:00:47]} 37. Rc5 {[%clk 0:00:25]}  Rxc5 {[%clk 0:00:45]} 38. bxc5 {[%clk 0:00:26]}  Bd5 {[%clk 0:00:46]} 39. Qb4 {[%clk 0:00:25]}  Qxb4 {[%clk 0:00:37]} 40. axb4 {[%clk 0:00:25]}  Ne8 {[%clk 0:00:38]} 41. Kg1 {[%clk 0:00:19]}  Nc7 {[%clk 0:00:38]} 42. Kf2 {[%clk 0:00:19]}  f5 {[%clk 0:00:38]} 43. Ra1 {[%clk 0:00:17]}  Kf6 {[%clk 0:00:38]} 44. Ke3 {[%clk 0:00:14]}  e5 {[%clk 0:00:37]} 45. Kd3 {[%clk 0:00:15]}  Ke6 {[%clk 0:00:37]} 46. g3 {[%clk 0:00:15]}  Kd7 {[%clk 0:00:37]} 47. f4 {[%clk 0:00:14]}  e4+ {[%clk 0:00:32]} 48. Kd4 {[%clk 0:00:13]}  Ke6 {[%clk 0:00:30]} 49. h3 {[%clk 0:00:11]}  Bc6 {[%clk 0:00:29]} 50. g4 {[%clk 0:00:10]}  Bb7 {[%clk 0:00:19]} 51. gxf5+ {[%clk 0:00:11]}  gxf5 {[%clk 0:00:20]} 52. Rg1 {[%clk 0:00:09]}  Nb5+ {[%clk 0:00:18]} 53. Ke3 {[%clk 0:00:10]}  Kf7 {[%clk 0:00:17]} 54. Rg5 {[%clk 0:00:10]}  Bc8 {[%clk 0:00:18]} 55. Rh5 {[%clk 0:00:10]}  Kg7 {[%clk 0:00:17]} 56. Rg5+ {[%clk 0:00:10]}  Kf7 {[%clk 0:00:17]} 57. Rh5 {[%clk 0:00:10]}  Kg6 {[%clk 0:00:15]} 58. Rg5+ {[%clk 0:00:09]}  Kf7 {[%clk 0:00:14]} 1/2-1/2


[Site "https://www.chess.com"]

[Event "Titled Tuesday Blitz December 20 Late 2022"]
[White "Delorme, Axel"]
[Black "Mikhailov, Viacheslav"]
[WhiteFideId "632023"]
[BlackFideId "4187369"]
[WhiteElo "2478"]
[BlackElo "2381"]
[Result "0-1"]
[Round "01"]
[TimeControl "180+1"]
[Date "2022.12.21"]
[WhiteClock "0:00:04"]
[BlackClock "0:00:20"]

1. e4 {[%clk 0:02:55]}  d6 {[%clk 0:02:59]} 2. d4 {[%clk 0:02:55]}  Nf6 {[%clk 0:03:00]} 3. Nc3 {[%clk 0:02:55]}  g6 {[%clk 0:03:00]} 4. Be3 {[%clk 0:02:56]}  Bg7 {[%clk 0:03:01]} 5. Qd2 {[%clk 0:02:56]}  O-O {[%clk 0:03:01]} 6. Bh6 {[%clk 0:02:56]}  e5 {[%clk 0:03:01]} 7. Nge2 {[%clk 0:02:49]}  exd4 {[%clk 0:03:00]} 8. Nxd4 {[%clk 0:02:48]}  Nc6 {[%clk 0:03:00]} 9. Bxg7 {[%clk 0:02:45]}  Kxg7 {[%clk 0:03:01]} 10. O-O-O {[%clk 0:02:46]}  Re8 {[%clk 0:02:51]} 11. f3 {[%clk 0:02:46]}  Be6 {[%clk 0:02:41]} 12. g4 {[%clk 0:02:42]}  h5 {[%clk 0:02:37]} 13. g5 {[%clk 0:02:36]}  Nh7 {[%clk 0:02:35]} 14. Nxe6+ {[%clk 0:02:27]}  Rxe6 {[%clk 0:02:35]} 15. Bc4 {[%clk 0:02:24]}  Re8 {[%clk 0:02:30]} 16. f4 {[%clk 0:02:19]}  a6 {[%clk 0:02:21]} 17. h4 {[%clk 0:02:17]}  Qd7 {[%clk 0:02:09]} 18. Rhf1 {[%clk 0:01:54]}  Rf8 {[%clk 0:02:08]} 19. Bd5 {[%clk 0:01:32]}  Rae8 {[%clk 0:02:06]} 20. Rde1 {[%clk 0:01:26]}  b5 {[%clk 0:02:02]} 21. Bxc6 {[%clk 0:01:15]}  Qxc6 {[%clk 0:02:03]} 22. Qd4+ {[%clk 0:01:15]}  Kg8 {[%clk 0:02:01]} 23. Nd5 {[%clk 0:01:14]}  Qd7 {[%clk 0:01:45]} 24. f5 {[%clk 0:00:59]}  c6 {[%clk 0:01:44]} 25. Nf6+ {[%clk 0:00:52]}  Nxf6 {[%clk 0:01:43]} 26. Qxf6 {[%clk 0:00:51]}  Qe7 {[%clk 0:01:00]} 27. fxg6 {[%clk 0:00:48]}  Qxf6 {[%clk 0:01:01]} 28. Rxf6 {[%clk 0:00:46]}  d5 {[%clk 0:00:52]} 29. gxf7+ {[%clk 0:00:27]}  Rxf7 {[%clk 0:00:53]} 30. Rxf7 {[%clk 0:00:24]}  Kxf7 {[%clk 0:00:54]} 31. Rf1+ {[%clk 0:00:25]}  Kg7 {[%clk 0:00:50]} 32. exd5 {[%clk 0:00:23]}  cxd5 {[%clk 0:00:51]} 33. Rf4 {[%clk 0:00:15]}  Re2 {[%clk 0:00:49]} 34. a4 {[%clk 0:00:13]}  Rg2 {[%clk 0:00:46]} 35. axb5 {[%clk 0:00:12]}  axb5 {[%clk 0:00:47]} 36. b4 {[%clk 0:00:12]}  Kg6 {[%clk 0:00:37]} 37. c3 {[%clk 0:00:11]}  Kg7 {[%clk 0:00:37]} 38. Kd1 {[%clk 0:00:12]}  Rh2 {[%clk 0:00:27]} 39. Kc1 {[%clk 0:00:09]}  Kg6 {[%clk 0:00:25]} 40. Rf6+ {[%clk 0:00:10]}  Kg7 {[%clk 0:00:25]} 41. Rf5 {[%clk 0:00:10]}  Rxh4 {[%clk 0:00:25]} 42. Rxd5 {[%clk 0:00:10]}  Rg4 {[%clk 0:00:20]} 43. Rxb5 {[%clk 0:00:08]}  h4 {[%clk 0:00:21]} 44. Ra5 {[%clk 0:00:04]}  h3 {[%clk 0:00:21]} 45. Ra2 {[%clk 0:00:05]}  Rg1+ {[%clk 0:00:20]} 46. Kb2 {[%clk 0:00:04]}  Rg2+ {[%clk 0:00:20]} 0-1


[Site "https://www.chess.com"]